bitfinex-derivatives/quotes_BTCF0:USTF0_20241110
["timestamp","ask_amount","ask_price","bid_price","bid_amount"]
[1731211594358,0.08713245,77301.0,77298.0,0.0992]
[1731211595959,0.08713245,77301.0,77295.0,0.3608]
[1731211596161,0.08713245,77301.0,77296.0,0.0992]
[1731211597460,0.01580643,77305.0,77296.0,0.0992]
[1731211597758,0.19891696,77309.0,77296.0,0.0992]
[1731211598153,0.19430878,77307.0,77302.0,0.3608]
[1731211599252,0.15146378,77309.0,77302.0,0.3608]
[1731211599253,0.01594682,77309.0,77302.0,0.3608]
[1731211599459,0.02587419,77312.0,77302.0,0.3608]
[1731211600451,0.04722301,77313.0,77302.0,0.3608]
[1731211600852,0.0730972,77313.0,77302.0,0.3608]
[1731211601947,0.13551696,77309.0,77302.0,0.3608]
[1731211602251,0.13551696,77309.0,77303.0,0.0992]
[1731211602857,0.13551696,77309.0,77302.0,0.3608]
[1731211603159,0.13551696,77309.0,77302.0,0.46]
[1731211603457,0.0730972,77313.0,77302.0,0.3608]
[1731211603458,0.13551696,77303.0,77302.0,0.3608]
[1731211606063,0.71720433,77303.0,77294.0,0.0992]
[1731211606251,0.13551696,77293.0,77291.0,0.0992]
[1731211606648,0.13551696,77293.0,77286.0,0.3608]
[1731211606864,0.13551696,77293.0,77287.0,0.0992]
[1731211608051,0.13551696,77293.0,77286.0,0.3608]
[1731211608257,0.13551696,77287.0,77279.0,0.0992]
[1731211608577,0.3608,77294.0,77279.0,0.23471696]
[1731211608753,0.19357344,77301.0,77285.0,0.13551696]
[1731211608953,0.04619453,77302.0,77291.0,0.3608]
[1731211609156,0.04619453,77302.0,77292.0,0.0992]
[1731211613757,0.01599453,77302.0,77292.0,0.0992]
[1731211613962,0.02587945,77303.0,77292.0,0.0992]
[1731211614571,0.0628,77308.0,77292.0,0.0992]
[1731211614863,0.19279009,77307.0,77292.0,0.0992]
[1731211615060,0.13551696,77303.0,77292.0,0.0992]
[1731211616056,0.13551696,77303.0,77291.0,0.3608]
[1731211616259,0.13551696,77297.0,77292.0,0.0992]
[1731211619258,0.13551696,77297.0,77292.0,0.13791382]
[1731211619958,0.19367025,77296.0,77292.0,0.03871382]
[1731211620161,0.3608,77294.0,77289.0,0.03871382]
[1731211620663,0.38739725,77304.0,77293.0,0.05163637]
[1731211620867,0.38667725,77304.0,77297.0,0.03874971]
[1731211621165,0.38667725,77304.0,77298.0,0.03874971]
[1731211621166,0.19300114,77303.0,77298.0,0.03874971]
[1731211622164,0.19300114,77303.0,77299.0,0.03874971]
[1731211622664,0.19300114,77303.0,77300.0,0.03874971]
[1731211623079,0.19300114,77303.0,77299.0,0.03874971]
[1731211624673,0.19300114,77303.0,77294.0,0.19342]
[1731211624876,0.19300114,77303.0,77294.0,0.0943]
[1731211625176,0.19300114,77303.0,77295.0,0.09912]
[1731211627561,0.0008,77312.0,77302.0,0.3608]
[1731211627766,0.0317,77325.0,77303.0,0.13551696]
[1731211627962,0.0317,77325.0,77304.0,0.09912]
[1731211628360,0.0317,77325.0,77304.0,0.13786971]
[1731211628562,0.0317,77325.0,77304.0,0.09912]
[1731211629064,0.01581274,77312.0,77304.0,0.09912]
[1731211629264,0.0317,77325.0,77304.0,0.09912]
[1731211629665,0.02587817,77319.0,77304.0,0.09912]
[1731211629865,0.01571272,77317.0,77304.0,0.09912]
[1731211632573,0.01571272,77317.0,77305.0,0.05163637]
[1731211633074,0.01571272,77317.0,77306.0,0.05163637]
[1731211633261,0.01571272,77317.0,77307.0,0.0633]
[1731211633662,0.01571272,77317.0,77308.0,0.0313]
[1731211634669,0.3608,77341.0,77308.0,1.08014]
[1731211634872,0.00072,77337.0,77331.0,0.13551696]
[1731211635070,0.3608,77341.0,77332.0,0.09912]
[1731211635674,0.0179383,77333.0,77332.0,0.09912]
[1731211635877,0.00194127,77333.0,77332.0,0.09912]
[1731211643379,0.00194127,77333.0,77332.0,0.45992]
[1731211646684,0.01782536,77333.0,77332.0,0.45992]
[1731211648880,0.00194127,77333.0,77332.0,0.45992]
[1731211649082,0.00194127,77333.0,77332.0,0.09912]
[1731211649385,0.00194127,77333.0,77332.0,0.45992]
[1731211649883,0.00194127,77333.0,77332.0,0.59543696]
[1731211654474,0.3608,77355.0,77332.0,1.28335696]
[1731211654681,0.3608,77355.0,77347.0,0.13551696]
[1731211654983,0.3608,77355.0,77348.0,0.09908]
[1731211655381,0.0329,77362.0,77353.0,0.3608]
[1731211655576,0.04855785,77362.0,77353.0,0.3608]
[1731211655776,0.19366553,77361.0,77353.0,0.3608]
[1731211656591,0.02586096,77357.0,77353.0,0.3608]
[1731211657093,0.02586096,77357.0,77347.0,0.13551696]
[1731211657094,0.58055917,77356.0,77337.0,0.3608]
[1731211657280,0.13551696,77339.0,77335.0,0.09908]
[1731211657482,0.0961,77338.0,77335.0,0.09908]
[1731211657990,0.0961,77338.0,77337.0,0.3608]
[1731211658188,0.0961,77338.0,77335.0,0.09908]
[1731211658378,0.3608,77345.0,77337.0,0.3608]
[1731211658893,0.19266493,77344.0,77337.0,0.3608]
[1731211661690,0.3774393,77345.0,77341.0,0.13551696]
[1731211661691,0.00068,77345.0,77341.0,0.13551696]
[1731211661990,0.13551696,77348.0,77337.0,0.3608]
[1731211662184,0.13551696,77342.0,77337.0,0.3608]
[1731211662382,0.13551696,77342.0,77332.0,0.09904]
[1731211662583,0.3608,77339.0,77332.0,0.09904]
[1731211664474,0.3608,77339.0,77333.0,0.03857901]
[1731211664675,0.13551696,77336.0,77332.0,0.03857901]
[1731211664981,0.0327,77335.0,77331.0,0.03857901]
[1731211665391,0.0327,77335.0,77332.0,0.03857901]
[1731211667288,0.0327,77335.0,77331.0,0.03857901]
[1731211667687,0.0327,77335.0,77332.0,0.03857901]
[1731211668378,0.0327,77335.0,77334.0,0.3608]
[1731211670388,0.0327,77335.0,77332.0,0.03857901]
[1731211670582,0.0327,77335.0,77331.0,0.03857901]
[1731211671595,0.0327,77335.0,77330.0,0.03857901]
[1731211672086,0.0160036,77336.0,77334.0,0.3608]
[1731211672282,0.13551696,77335.0,77332.0,0.03857901]
[1731211672485,0.32921776,77335.0,77329.0,0.03857901]
[1731211672900,0.1937008,77335.0,77329.0,0.03857901]
[1731211674791,0.1937008,77335.0,77332.0,0.03857901]
[1731211676090,0.1937008,77335.0,77325.0,0.52178]
[1731211676091,0.1937008,77335.0,77330.0,0.03857901]
[1731211676993,0.1937008,77335.0,77331.0,0.03857901]
[1731211677594,0.1937008,77335.0,77330.0,0.03857901]
[1731211678392,0.1937008,77335.0,77326.0,0.09908]
[1731211678393,0.1937008,77335.0,77331.0,0.03857901]
[1731211678591,0.1937008,77335.0,77326.0,0.09908]
[1731211678984,0.3616,77342.0,77333.0,0.13551696]
[1731211679184,0.3616,77342.0,77334.0,0.0301]
[1731211679395,0.3608,77342.0,77335.0,0.09908]
[1731211679795,0.01614182,77343.0,77335.0,0.09908]
[1731211680098,0.19520811,77348.0,77339.0,0.3608]
[1731211680498,0.13551696,77357.0,77339.0,0.3608]
[1731211680797,0.19466519,77348.0,77339.0,0.3608]
[1731211682201,0.03356789,77347.0,77340.0,0.0619]
[1731211682386,0.19466519,77348.0,77340.0,0.0619]
[1731211682592,0.19412278,77346.0,77340.0,0.0619]
[1731211682899,0.19412278,77348.0,77340.0,0.0619]
[1731211683195,0.19505693,77346.0,77340.0,0.0619]
[1731211683595,0.37644036,77351.0,77340.0,0.0619]
[1731211683802,0.03358658,77348.0,77340.0,0.0619]
[1731211684004,0.22864351,77347.0,77340.0,0.0619]
[1731211684301,0.37644036,77351.0,77340.0,0.0619]
[1731211684495,0.19441917,77346.0,77340.0,0.0619]
[1731211684702,0.19441917,77347.0,77340.0,0.0619]
[1731211684999,0.03353364,77346.0,77340.0,0.0619]
[1731211685298,0.19441917,77347.0,77340.0,0.0619]
[1731211685494,0.03350791,77346.0,77340.0,0.0619]
[1731211685694,0.19344196,77346.0,77340.0,0.0619]
[1731211685901,0.51263732,77351.0,77340.0,0.0619]
[1731211686089,0.13551696,77344.0,77339.0,0.3608]
[1731211686289,0.13551696,77344.0,77320.0,0.21267499]
[1731211686290,0.3608,77343.0,77331.0,0.03857901]
[1731211686491,0.3608,77343.0,77330.0,0.03857901]
[1731211686492,0.13551696,77335.0,77330.0,0.03857901]
[1731211686694,0.13551696,77335.0,77329.0,0.03857901]
[1731211686989,0.13551696,77335.0,77328.0,0.03857901]
[1731211687296,0.13551696,77335.0,77328.0,0.39937901]
[1731211687494,0.13551696,77335.0,77329.0,0.03857901]
[1731211688808,0.13551696,77341.0,77329.0,0.03857901]
[1731211689306,0.19279079,77340.0,77329.0,0.03857901]
[1731211689494,0.19279079,77340.0,77328.0,0.39937901]
[1731211690389,0.19279079,77340.0,77330.0,0.03857901]
[1731211692804,0.0158408,77341.0,77335.0,0.3608]
[1731211692996,0.3608,77343.0,77335.0,0.39937901]
[1731211693199,0.3608,77343.0,77336.0,0.03857901]
[1731211693399,0.19384467,77342.0,77336.0,0.03857901]
[1731211693706,0.19384467,77342.0,77335.0,0.3608]
[1731211695407,0.02586502,77341.0,77335.0,0.3608]
[1731211695593,0.05945804,77341.0,77335.0,0.3608]
[1731211695797,0.03359302,77340.0,77335.0,0.3608]
[1731211696004,0.02586502,77341.0,77335.0,0.3608]
[1731211696209,0.27043854,77444.0,77335.0,0.49631696]
[1731211696210,0.0311,77358.0,77335.0,0.49631696]
[1731211696401,0.07267169,77350.0,77335.0,0.49631696]
[1731211696603,0.033628,77349.0,77335.0,0.49631696]
[1731211696806,0.033628,77348.0,77335.0,0.49631696]
[1731211697108,0.033628,77347.0,77335.0,0.49631696]
[1731211697301,0.033628,77346.0,77335.0,0.49631696]
[1731211697510,0.033628,77345.0,77335.0,0.49631696]
[1731211697705,0.37754653,77351.0,77335.0,0.49631696]
[1731211698003,0.03370509,77350.0,77335.0,0.49631696]
[1731211698306,0.03370509,77349.0,77335.0,0.49631696]
[1731211698503,0.03370509,77348.0,77335.0,0.49631696]
[1731211698811,0.03370509,77347.0,77335.0,0.49631696]
[1731211699010,0.03370509,77346.0,77335.0,0.49631696]
[1731211699305,0.03370509,77345.0,77335.0,0.49631696]
[1731211699610,0.3608,77351.0,77335.0,0.49631696]
[1731211699805,0.03369289,77350.0,77335.0,0.49631696]
[1731211700007,0.03369289,77349.0,77335.0,0.49631696]
[1731211700310,0.03369289,77348.0,77335.0,0.49631696]
[1731211700505,0.03369289,77347.0,77335.0,0.49631696]
[1731211700706,0.3608,77351.0,77339.0,0.03857901]
[1731211701009,0.3608,77351.0,77340.0,0.19414]
[1731211703709,0.13551696,77349.0,77340.0,0.19414]
[1731211704103,0.3608,77351.0,77340.0,0.19414]
[1731211705811,0.3608,77351.0,77345.0,0.3608]
[1731211706702,0.13551696,77371.0,77349.0,0.13551696]
[1731211706905,0.13551696,77371.0,77357.0,0.3608]
[1731211706906,0.0326,77371.0,77357.0,0.3608]
[1731211707807,0.0326,77371.0,77357.0,0.41223869]
[1731211707997,0.0326,77371.0,77365.0,0.3608]
[1731211708204,0.0326,77371.0,77366.0,0.09904]
[1731211708398,0.04818274,77371.0,77366.0,0.09904]
[1731211709213,0.03494657,77370.0,77366.0,0.09904]
[1731211709412,0.04818274,77371.0,77366.0,0.09904]
[1731211710303,0.0326,77371.0,77366.0,0.09904]
[1731211711300,0.02586269,77373.0,77366.0,0.09904]
[1731211711713,0.19514833,77372.0,77366.0,0.09904]
[1731211712111,0.02586269,77374.0,77366.0,0.09904]
[1731211712412,0.19372508,77373.0,77366.0,0.09904]
[1731211720514,0.19372508,77373.0,77365.0,0.3608]
[1731211720709,0.19372508,77373.0,77366.0,0.099]
[1731211721221,0.19372508,77373.0,77365.0,0.3608]
[1731211721411,0.19372508,77373.0,77367.0,0.099]
[1731211723019,0.19372508,77373.0,77365.0,0.3608]
[1731211723020,0.13551696,77372.0,77368.0,0.099]
[1731211723519,0.19320488,77371.0,77368.0,0.099]
[1731211725108,0.19320488,77371.0,77366.0,0.099]
[1731211727118,0.19320488,77371.0,77365.0,0.3608]
[1731211727119,0.0626,77370.0,77365.0,0.3608]
[1731211727510,0.19467391,77369.0,77365.0,0.3608]
[1731211729220,0.19467391,77369.0,77361.0,0.099]
[1731211731016,0.03384162,77368.0,77361.0,0.099]
[1731211731215,0.19467391,77369.0,77367.0,0.3608]
[1731211731542,0.08685836,77369.0,77367.0,0.3608]
[1731211731719,0.19430999,77368.0,77367.0,0.3608]
[1731211732022,0.00068,77374.0,77367.0,0.53451672]
[1731211732226,0.3608,77382.0,77373.0,0.08685836]
[1731211732417,0.03452449,77379.0,77377.0,0.08685836]
[1731211732619,0.03452449,77378.0,77373.0,0.08685836]
[1731211733027,0.19386606,77377.0,77373.0,0.08685836]
[1731211733222,0.03452449,77376.0,77373.0,0.08685836]
[1731211733526,0.03452449,77376.0,77371.0,0.099]
[1731211733823,0.03452449,77375.0,77371.0,0.099]
[1731211734120,0.03452449,77374.0,77371.0,0.099]
[1731211734314,0.02585639,77378.0,77371.0,0.099]
[1731211734516,0.03461868,77377.0,77371.0,0.099]
[1731211734725,0.03461868,77376.0,77371.0,0.099]
[1731211735417,0.03461868,77375.0,77371.0,0.099]
[1731211735618,0.03461868,77374.0,77371.0,0.099]
[1731211735919,0.03461868,77373.0,77371.0,0.099]
[1731211736123,0.03461868,77372.0,77371.0,0.099]
[1731211737523,0.02585639,77378.0,77371.0,0.099]
[1731211737724,0.07458289,77377.0,77371.0,0.099]
[1731211738029,0.07458289,77376.0,77371.0,0.099]
[1731211738216,0.03451239,77375.0,77371.0,0.099]
[1731211738418,0.03451239,77374.0,77371.0,0.099]
[1731211738617,0.03451239,77373.0,77371.0,0.099]
[1731211738818,0.03451239,77372.0,77370.0,0.099]
[1731211739014,0.02585639,77378.0,77370.0,0.099]
[1731211739317,0.22788964,77377.0,77370.0,0.099]
[1731211739513,0.03443101,77376.0,77370.0,0.099]
[1731211739727,0.19345863,77377.0,77370.0,0.099]
[1731211739918,0.03442019,77376.0,77370.0,0.099]
[1731211740224,0.19335047,77377.0,77370.0,0.099]
[1731211740422,0.03441752,77376.0,77370.0,0.099]
[1731211740627,0.02585639,77378.0,77370.0,0.099]
[1731211740830,0.03441469,77377.0,77370.0,0.099]
[1731211741027,0.03441469,77376.0,77370.0,0.099]
[1731211741335,0.02585639,77378.0,77370.0,0.099]
[1731211741531,0.19372785,77375.0,77370.0,0.099]
[1731211741926,0.02585639,77378.0,77370.0,0.099]
[1731211742323,0.19372785,77374.0,77370.0,0.099]
[1731211742528,0.19372785,77377.0,77370.0,0.099]
[1731211742827,0.19330931,77374.0,77370.0,0.099]
[1731211743331,0.02585639,77378.0,77370.0,0.099]
[1731211743731,0.193512,77374.0,77370.0,0.099]
[1731211743930,0.193512,77377.0,77370.0,0.099]
[1731211744137,0.02585639,77378.0,77370.0,0.099]
[1731211744323,0.193512,77377.0,77370.0,0.099]
[1731211744927,0.03435845,77376.0,77370.0,0.099]
[1731211745125,0.03435845,77375.0,77370.0,0.099]
[1731211745331,0.19308233,77375.0,77370.0,0.099]
[1731211745533,0.02585639,77378.0,77370.0,0.099]
[1731211745734,0.2283474,77377.0,77370.0,0.099]
[1731211745929,0.02585639,77378.0,77370.0,0.099]
[1731211746327,0.19400981,77376.0,77370.0,0.099]
[1731211746546,0.19400981,77377.0,77370.0,0.099]
[1731211746731,0.02585639,77378.0,77370.0,0.099]
[1731211747035,0.19493866,77377.0,77370.0,0.099]
[1731211751133,0.01546949,77380.0,77376.0,0.3608]
[1731211751334,0.02586269,77387.0,77376.0,0.3608]
[1731211751635,0.22931729,77386.0,77377.0,0.0926]
[1731211751942,0.19469886,77386.0,77377.0,0.0926]
[1731211752331,0.03467987,77385.0,77377.0,0.0926]
[1731211752534,0.03467987,77384.0,77377.0,0.0926]
[1731211752738,0.02586269,77387.0,77377.0,0.0926]
[1731211753135,0.19353484,77385.0,77377.0,0.0926]
[1731211753335,0.08682296,77383.0,77377.0,0.0926]
[1731211754048,0.0345535,77382.0,77377.0,0.0926]
[1731211754228,0.0345535,77381.0,77377.0,0.0926]
[1731211754431,0.0345535,77380.0,77377.0,0.0926]
[1731211754626,0.0345535,77380.0,77368.0,0.3608]
[1731211754627,0.12137646,77379.0,77375.0,0.09896]
[1731211754834,0.0345535,77378.0,77375.0,0.09896]
[1731211755034,0.22767972,77378.0,77368.0,0.3608]
[1731211755234,0.0345619,77377.0,77373.0,0.09896]
[1731211755437,0.19312622,77378.0,77373.0,0.09896]
[1731211755645,0.03445678,77377.0,77373.0,0.09896]
[1731211755941,0.0325,77381.0,77373.0,0.09896]
[1731211755942,0.08682296,77375.0,77373.0,0.09896]
[1731211756444,0.03449559,77374.0,77373.0,0.09896]
[1731211757344,0.03449559,77374.0,77368.0,0.3608]
[1731211757544,0.08682296,77371.0,77369.0,0.09896]
[1731211757842,0.03449559,77370.0,77369.0,0.09896]
[1731211758039,0.03449559,77370.0,77368.0,0.3608]
[1731211758630,0.03449559,77369.0,77368.0,0.3608]
[1731211759340,0.03449559,77369.0,77368.0,0.45976]
[1731211761041,0.08682296,77375.0,77368.0,0.45976]
[1731211761444,0.19280097,77374.0,77368.0,0.45976]
[1731211761744,0.19280097,77374.0,77368.0,0.3608]
[1731211761945,0.19280097,77374.0,77368.0,0.45976]
[1731211762337,0.19280097,77374.0,77368.0,0.38704266]
[1731211763143,0.19280097,77374.0,77368.0,0.28808266]
[1731211769152,0.19280097,77374.0,77368.0,0.37490562]
[1731211769549,0.07457345,77373.0,77368.0,0.37490562]
[1731211769749,0.03450802,77373.0,77368.0,0.37490562]
[1731211769951,0.19288241,77372.0,77368.0,0.37490562]
[1731211771153,0.19288241,77372.0,77368.0,0.28808266]
[1731211771847,0.19288241,77372.0,77367.0,0.09896]
[1731211774558,0.08682296,77368.0,77366.0,0.3608]
[1731211774758,0.03450802,77367.0,77366.0,0.3608]
[1731211775059,0.3153233,77367.0,77366.0,0.3608]
[1731211775363,0.35524272,77367.0,77366.0,0.28808061]
[1731211775847,0.28081528,77367.0,77366.0,0.28808061]
[1731211776854,0.28081528,77367.0,77364.0,0.41223869]
[1731211777357,0.28081528,77367.0,77364.0,0.05143869]
[1731211777559,0.28081528,77367.0,77366.0,0.03874507]
[1731211777957,0.28081528,77367.0,77365.0,0.03874507]
[1731211778160,0.08682296,77366.0,77365.0,0.03874507]
[1731211778557,0.28005065,77366.0,77365.0,0.03874507]
[1731211779363,0.28005065,77366.0,77364.0,0.03874507]
[1731211780062,0.28005065,77366.0,77365.0,0.03874507]
[1731211780256,0.28005065,77366.0,77364.0,0.03874507]
[1731211781956,0.28005065,77366.0,77365.0,0.03874507]
[1731211783862,0.28005065,77366.0,77360.0,0.0962]
[1731211784077,0.08682296,77361.0,77360.0,0.0962]
[1731211790974,0.17364592,77361.0,77357.0,0.06429836]
[1731211791175,0.3608,77358.0,77354.0,0.06429836]
[1731211791377,0.17364592,77355.0,77352.0,0.05165742]
[1731211791572,0.17364592,77355.0,77350.0,0.06429836]
[1731211791573,0.17364592,77355.0,77354.0,0.03874509]
[1731211791777,0.19434626,77354.0,77351.0,0.03874509]
[1731211791978,0.36799218,77355.0,77351.0,0.03874509]
[1731211792184,0.17364592,77355.0,77350.0,0.03874509]
[1731211792379,0.08682296,77351.0,77349.0,0.001939]
[1731211792680,0.65249633,77350.0,77340.0,0.05165742]
[1731211792982,0.53444592,77341.0,77333.0,0.05165742]
[1731211793182,0.3608,77334.0,77331.0,0.05165742]
[1731211793382,0.08682296,77332.0,77327.0,0.05165742]
[1731211793780,0.08682296,77332.0,77326.0,0.05165742]
[1731211793987,0.08682296,77332.0,77327.0,0.05165742]
[1731211794485,0.08682296,77332.0,77323.0,0.0316]
[1731211794486,0.08682296,77332.0,77324.0,0.05165742]
[1731211795284,0.08682296,77332.0,77329.0,0.3608]
[1731211795682,0.36148,77341.0,77331.0,0.08682296]
[1731211795884,0.08682296,77339.0,77329.0,0.3608]
[1731211797583,0.08682296,77334.0,77329.0,0.3608]
[1731211797986,0.08682296,77334.0,77330.0,0.09892]
[1731211798190,0.08682296,77331.0,77330.0,0.09892]
[1731211799990,0.10235313,77331.0,77330.0,0.09892]
[1731211803394,0.3608,77334.0,77330.0,0.09892]
[1731211805184,0.37641672,77334.0,77330.0,0.09892]
[1731211805993,0.01561672,77334.0,77330.0,0.09892]
[1731211806196,0.08682296,77335.0,77330.0,0.09892]
[1731211808592,0.1026063,77335.0,77330.0,0.09892]
[1731211810487,0.3608,77339.0,77331.0,0.08682296]
[1731211810797,0.3608,77348.0,77335.0,0.08682296]
[1731211810798,0.08682296,77346.0,77335.0,0.08682296]
[1731211811096,0.08682296,77346.0,77336.0,0.0309]
[1731211811498,0.3608,77348.0,77337.0,0.0304]
[1731211811795,0.3608,77348.0,77343.0,0.08682296]
[1731211812001,0.3608,77348.0,77343.0,0.18570296]
[1731211812796,0.08682296,77358.0,77347.0,0.08682296]
[1731211812998,0.08682296,77355.0,77343.0,0.18570296]
[1731211814401,0.08682296,77355.0,77343.0,0.23736038]
[1731211814591,0.08682296,77355.0,77344.0,0.05165742]
[1731211814790,0.08682296,77351.0,77344.0,0.05165742]
[1731211815004,0.08682296,77351.0,77343.0,0.23736038]
[1731211815186,0.08682296,77351.0,77344.0,0.05165742]
[1731211816398,0.08682296,77351.0,77345.0,0.05165742]
[1731211816797,0.08682296,77351.0,77344.0,0.05165742]
[1731211816996,0.08682296,77347.0,77343.0,0.05165742]
[1731211817296,0.08682296,77347.0,77344.0,0.09888]
[1731211817499,0.08682296,77345.0,77344.0,0.09888]
[1731211817690,0.08682296,77345.0,77341.0,0.3608]
[1731211817997,0.08682296,77345.0,77342.0,0.09888]
[1731211818194,0.08682296,77349.0,77342.0,0.09888]
[1731211818589,0.08682296,77349.0,77343.0,0.05165742]
[1731211819409,0.08682296,77349.0,77344.0,0.05165742]
[1731211820193,0.08682296,77349.0,77345.0,0.05165742]
[1731211821101,0.08682296,77349.0,77342.0,0.09888]
[1731211821302,0.37713322,77356.0,77346.0,0.08682296]
[1731211821508,0.37645322,77356.0,77348.0,0.3608]
[1731211821703,0.01565322,77356.0,77348.0,0.3608]
[1731211821906,0.08682296,77357.0,77348.0,0.3608]
[1731211822202,0.08682296,77353.0,77348.0,0.3608]
[1731211829709,0.08682296,77353.0,77349.0,0.031]
[1731211830316,0.08682296,77358.0,77349.0,0.031]
[1731211830819,0.08682296,77358.0,77350.0,0.3608]
[1731211831113,0.08682296,77358.0,77351.0,0.09888]
[1731211831315,0.08682296,77358.0,77351.0,0.13128]
[1731211831513,0.3608,77362.0,77351.0,0.21810296]
[1731211831715,0.3608,77362.0,77356.0,0.08682296]
[1731211832015,0.19478225,77361.0,77351.0,0.21810296]
[1731211832604,0.3608,77362.0,77351.0,0.21810296]
[1731211833217,0.37677346,77362.0,77351.0,0.21810296]
[1731211834209,0.08682296,77360.0,77351.0,0.21810296]
[1731211834411,0.37745346,77362.0,77355.0,0.08682296]
[1731211834610,0.08682296,77360.0,77351.0,0.13128]
[1731211836723,0.37749346,77362.0,77354.0,0.08682296]
[1731211836908,0.01597346,77362.0,77359.0,0.08682296]
[1731211837108,0.08682296,77376.0,77360.0,0.0988]
[1731211837313,0.0622,77381.0,77363.0,0.08682296]
[1731211837519,0.0622,77381.0,77364.0,0.0301]
[1731211837722,0.08682296,77370.0,77364.0,0.0301]
[1731211838621,0.37718853,77372.0,77364.0,0.0301]
[1731211838919,0.37650853,77372.0,77364.0,0.0301]
[1731211839321,0.08682296,77370.0,77364.0,0.0301]
[1731211839913,0.08682296,77366.0,77365.0,0.0988]
[1731211840415,0.08682296,77366.0,77364.0,0.0301]
[1731211840719,0.08682296,77366.0,77365.0,0.0988]
[1731211842924,0.08682296,77366.0,77357.0,0.37649168]
[1731211843116,0.08682296,77358.0,77357.0,0.3608]
[1731211843424,0.08682296,77358.0,77357.0,0.0988]
[1731211848730,0.00068,77365.0,77357.0,0.15037029]
[1731211848929,0.3608,77367.0,77359.0,0.08682296]
[1731211849626,0.08682296,77369.0,77359.0,0.08682296]
[1731211849929,0.192843,77368.0,77363.0,0.08682296]
[1731211850118,0.192843,77368.0,77367.0,0.08682296]
[1731211850320,0.01584239,77369.0,77367.0,0.08682296]
[1731211850524,0.192843,77372.0,77367.0,0.08682296]
[1731211850525,0.0304,77373.0,77367.0,0.08682296]
[1731211850919,0.19314195,77372.0,77367.0,0.08682296]
[1731211851122,0.19314195,77372.0,77366.0,0.0988]
[1731211851123,0.08682296,77371.0,77366.0,0.0988]
[1731211855230,0.08682296,77371.0,77367.0,0.0323]
[1731211858424,0.01546803,77373.0,77367.0,0.11912296]
[1731211858734,0.08682296,77375.0,77367.0,0.11912296]
[1731211859131,0.193318,77373.0,77367.0,0.11912296]
[1731211860333,0.08682296,77371.0,77367.0,0.1311]
[1731211863829,0.04327191,77374.0,77367.0,0.21792296]
[1731211864034,0.04327191,77374.0,77368.0,0.05157029]
[1731211864228,0.19266875,77373.0,77369.0,0.05157029]
[1731211864533,0.08682296,77372.0,77369.0,0.05157029]
[1731211865031,0.08682296,77372.0,77367.0,0.18267029]
[1731211866737,0.04327191,77374.0,77367.0,0.18267029]
[1731211866935,0.13009487,77374.0,77367.0,0.18267029]
[1731211867136,0.19514204,77373.0,77367.0,0.18267029]
[1731211871733,0.19514204,77373.0,77367.0,0.1311]
[1731211871931,0.19514204,77373.0,77368.0,0.05157029]
[1731211872637,0.19514204,77373.0,77367.0,0.18267029]
[1731211873335,0.19514204,77373.0,77367.0,0.1311]
[1731211875232,0.08682296,77371.0,77367.0,0.1311]
[1731211875830,0.08682296,77371.0,77367.0,0.0988]
[1731211878144,0.08682296,77371.0,77363.0,0.3608]
[1731211878329,0.08682296,77364.0,77354.0,0.41237029]
[1731211878741,0.08682296,77364.0,77356.0,0.09872]
[1731211881441,0.08682296,77364.0,77360.0,0.06446286]
[1731211882242,0.08682296,77364.0,77359.0,0.06446286]
[1731211882637,0.08682296,77364.0,77358.0,0.06446286]
[1731211882939,0.08682296,77360.0,77359.0,0.05166924]
[1731211883745,0.08682296,77360.0,77359.0,0.05165646]
[1731211883936,0.08682296,77360.0,77358.0,0.05165646]
[1731211884135,0.08682296,77360.0,77359.0,0.05165646]
[1731211884341,0.10297375,77360.0,77359.0,0.05165646]
[1731211886245,0.01615079,77360.0,77359.0,0.05165646]
[1731211886445,0.08682296,77364.0,77359.0,0.05165646]
[1731211886834,0.19464298,77363.0,77359.0,0.05165646]
[1731211887242,0.19464298,77363.0,77357.0,0.05165646]
[1731211888048,0.08682296,77360.0,77357.0,0.05165646]
[1731211888346,0.08682296,77360.0,77355.0,0.18097646]
[1731211888648,0.08682296,77360.0,77356.0,0.05165646]
[1731211890049,0.08682296,77360.0,77355.0,0.18097646]
[1731211890350,0.08682296,77360.0,77356.0,0.05165646]
[1731211890851,0.08682296,77360.0,77355.0,0.12932]
[1731211891043,0.3608,77359.0,77355.0,0.12932]
[1731211895344,0.02585786,77365.0,77356.0,0.3608]
[1731211895547,0.02585786,77365.0,77356.0,0.41245646]
[1731211895752,0.08682296,77363.0,77357.0,0.05165646]
[1731211896347,0.08682296,77363.0,77356.0,0.3608]
[1731211901155,0.02585786,77365.0,77356.0,0.3608]
[1731211901654,0.19348431,77364.0,77356.0,0.3608]
[1731211903451,0.19348431,77364.0,77358.0,0.05165646]
[1731211905456,0.19348431,77364.0,77359.0,0.05165646]
[1731211907458,0.19348431,77364.0,77356.0,0.3608]
[1731211907459,0.19348431,77364.0,77360.0,0.05165646]
[1731211909961,0.01595508,77367.0,77361.0,0.05165646]
[1731211910161,0.3608,77368.0,77363.0,0.13847942]
[1731211910463,0.3608,77368.0,77366.0,0.05165646]
[1731211911361,0.3608,77368.0,77364.0,0.0328]
[1731211911558,0.3608,77368.0,77367.0,0.08682296]
[1731211911866,0.00193952,77374.0,77367.0,0.08682296]
[1731211912062,0.00193952,77374.0,77365.0,0.0322]
[1731211912063,0.01800072,77374.0,77371.0,0.08682296]
[1731211913464,0.0160612,77374.0,77371.0,0.08682296]
[1731211913765,0.08682296,77376.0,77371.0,0.08682296]
[1731211915069,0.44762296,77380.0,77371.0,0.08682296]
[1731211917275,0.08682296,77376.0,77371.0,0.08682296]
[1731211917874,0.08682296,77372.0,77368.0,0.0309]
[1731211918575,0.08682296,77372.0,77368.0,0.06963518]
[1731211918781,0.08682296,77372.0,77370.0,0.03873518]
[1731211919173,0.08682296,77372.0,77369.0,0.03873518]
[1731211921688,0.08682296,77372.0,77370.0,0.03873518]
[1731211922578,0.10244531,77372.0,77369.0,0.03873518]
[1731211923081,0.01562235,77372.0,77368.0,0.0309]
[1731211923285,0.08682296,77371.0,77368.0,0.0309]
[1731211923873,0.08682296,77371.0,77368.0,0.06963518]
[1731211924484,0.08682296,77371.0,77368.0,0.0309]
[1731211925778,0.08682296,77371.0,77368.0,0.06963518]
[1731211926678,0.08682296,77371.0,77368.0,0.0309]
[1731211927585,0.08682296,77375.0,77368.0,0.0309]